[Event "Riga Chess Open 2020"]
[Site "Riga"]
[Date "2020.08.30"]
[Round "9.4"]
[White "Melderis, Uldis"]
[Black "Stabulnieks, Klavs"]
[Result "1/2-1/2"]
[ECO "A00"]
[WhiteElo "1889"]
[BlackElo "2214"]
[Annotator "RC"]
[PlyCount "43"]
[EventDate "2020.08.29"]
[EventType "swiss"]
[EventCountry "LAT"]
[SourceTitle "playchess.com"]
[Source "ChessBase"]
[SourceQuality "1"]
[TimeControl "5400+30"]

1. b4 {[%emt 0:00:00]} c6 {[%emt 0:00:00]} 2. Bb2 {[%emt 0:00:00]} a5 {[%emt 0:00:00]} 3. a3 {[%emt 0:00:00]} Qb6 {[%emt 0:00:00]} 4. c4 {[%emt 0:00:00]} axb4 {[%emt 0:03:51]} 5. c5 {[%emt 0:00:10]} Qc7 {[%emt 0:05:02]} 6. axb4 {[%emt 0:00:05]} Rxa1 {[%emt 0:00:06]} 7. Bxa1 {[%emt 0:00:04]} d5 {[%emt 0:00:32]} 8. Nf3 {[%emt 0:01:49]} Nd7 {[%emt 0:00:44]} 9. d4 {[%emt 0:00:18]} g6 {[%emt 0:01:36]} 10. e3 {[%emt 0:01:41]} Bg7 {[%emt 0:00:27]} 11. Bd3 {[%emt 0:00:40]} e5 {[%emt 0:03:08]} 12. dxe5 {[%emt 0:00:27]} Nxe5 {[%emt 0:00:05]} 13. Nxe5 {[%emt 0:00:52]} Bxe5 {[%emt 0:00:06]} 14. Nd2 {[%emt 0:00:34]} Ne7 {[%emt 0:02:59]} 15. Nf3 {[%emt 0:00:31]} Bxa1 {[%emt 0:00:06]} 16. Qxa1 {[%emt 0:00:03]} O-O {[%emt 0:00:13]} 17. O-O {[%emt 0:00:16]} Bg4 {[%emt 0:05:37]} 18. Qe5 {[%emt 0:02:05]} Qxe5 {[%emt 0:07:14]} 19. Nxe5 {[%emt 0:00:05]} Be6 {[%emt 0:00:07]} 20. Ra1 {[%emt 0:00:21]} Rb8 {[%emt 0:01:02]} 21. Nf3 {[%emt 0:00:43]} b6 {[%emt 0:02:15]} 22. Nd4 {[%emt 0:00:03]} 1/2-1/2